Cogmind - Beta 10.2 @@@ ROGUE MODE // 2021.10.23 @ 00:24:31 Player: Peace Result: Destroyed by G-67 Veteran with Electrolaser Performance ------------- Evolutions (6) 3000 Regions Visited (15) 3000 Robots Destroyed (68) 340 Value Destroyed (2973) 2973 Prototype IDs (24) 480 Alien Tech Used (2) 400 Bonus (936) 936 TOTAL SCORE: 11129 Bonus ------- Pacifist 270 Follower Combat Kills 66 Aligned with FarCom 300 Met Zhirov 300 Cogmind --------- Core Integrity 0/1150 Matter 280/300 Energy 210/900 System Corruption 2% Temperature Cool (12) Movement Walking (120) Location -3/Proximity Caves Parts ------- > --- POWER (2) -------- (None) > --- PROPULSION (6) --- Flexi-carbon Leg Flexi-carbon Leg Flexi-carbon Leg > --- UTILITY (9) ------ High-capacity Storage Unit Advanced Energy Well Advanced Visual Processing Unit Advanced Salvage Targeting Computer Improved Component Analysis Suite > --- WEAPON (2) ------- (None) > --- INVENTORY (12) --- Antigrav System Advanced Heat Sink Compact Battery (300) Advanced System Shield Phasing Sabre Peak State ------------ > --- POWER ------------ Neutrino Core Micro Fission Core > --- PROPULSION ------- Heavy Treads Heavy Treads Heavy Treads > --- UTILITY ---------- Experimental Heat Sink Lightpack 2.0 Advanced Visual Processing Unit Enhanced Optical Array Advanced Terrain Scanner Improved Heavy Armor Plating Experimental System Shield > --- WEAPON ----------- Heavy Gauss Cannon Heavy Gauss Cannon > --- INVENTORY -------- Heavy Treads Heavy Treads Antigrav System Antigrav System Gyrokinetic Inverter Linear Gravjet Improved Antigrav System Nuclear Pulse Thruster Field Propulsion Drive Compact Battery Improved Terrain Scan Processor Advanced ECM Suite Reaction Control System Improved Heavy Armor Plating Heavy Disruptor Cannon Heavy Gauss Cannon Improved Grenade Launcher Improved Grenade Launcher Improved Grenade Launcher Spear [Rating: 129] Favorites ----------- Power Neutrino Core Engine Improved Ion Engine Power Core Neutrino Core Reactor Fusion Reactor Propulsion Flexi-carbon Leg Treads Heavy Treads Leg Flexi-carbon Leg Wheel Armored Huge Wheel Hover Unit Gyrokinetic Inverter Utility Advanced Visual Processing Unit Device Advanced Heat Sink Storage Lightpack 2.0 Processor Advanced Visual Processing Unit Hackware Experimental System Shield Protection Improved Heavy Armor Plating Weapon Electrolaser Energy Gun Electrolaser Energy Cannon Proton Cannon Ballistic Gun Railgun Ballistic Cannon Heavy Gauss Cannon Launcher Improved Grenade Launcher Impact Weapon Power Maul Slashing Weapon Katana Piercing Weapon Spear Build | -11 -10 -10 -10 -9 -8 -7 -6 -5 -5 -5 -4 -4 -4 -4 -3 ------- Run | Scr Mat Min Exi Min Mat Fac Fac Fac Was Fac Fac Upp Upp Zhi Pro Slots Evolved 12 | . . . . . 4 2 2 2 . . 2 . . . . Power 1 | . . . . . 1 . . . . . . . . . . Propulsion 4 | . . . . . 2 . 1 . . . 1 . . . . Utility 7 | . . . . . 1 2 1 2 . . 1 . . . . Weapon . | . . . . . . . . . . . . . . . . Parts Attached 156 | . 1 . 2 . 21 9 21 . 3 6 26 24 25 7 11 Power 23 | . . . 1 . 4 . 3 . . 1 3 3 5 2 1 Engine 6 | . . . 1 . 3 . . . . . 1 . 1 . . Core 15 | . . . . . 1 . 3 . . 1 2 3 4 1 . Reactor 2 | . . . . . . . . . . . . . . 1 1 Propulsion 56 | . . . . . 12 3 14 . 1 2 6 4 7 3 4 Treads 17 | . . . . . 4 . 4 . . 2 1 4 2 . . Leg 21 | . . . . . 7 2 . . . . . . 5 3 4 Wheel 2 | . . . . . . 1 1 . . . . . . . . Hover 16 | . . . . . 1 . 9 . 1 . 5 . . . . Flight . | . . . . . . . . . . . . . . . . Utility 46 | . 1 . 1 . 1 3 2 . 2 2 12 10 9 2 1 Device 18 | . 1 . . . . . . . 1 . 6 3 6 . 1 Storage 8 | . . . 1 . . . . . . . 1 5 . 1 . Processor 5 | . . . . . 1 1 1 . . . 1 . 1 . . Hackware 1 | . . . . . . . . . 1 . . . . . . Protection 14 | . . . . . . 2 1 . . 2 4 2 2 1 . Artifact . | . . . . . . . . . . . . . . . . Weapon 31 | . . . . . 4 3 2 . . 1 5 7 4 . 5 Energy Gun 4 | . . . . . 1 . . . . . . . 2 . 1 Energy Cannon 4 | . . . . . . . . . . . . 2 1 . 1 Ballistic Gun 3 | . . . . . . . . . . . 2 . . . 1 Ballistic Cannon 2 | . . . . . . . . . . . 2 . . . . Launcher 8 | . . . . . 1 2 . . . 1 . 2 . . 2 Special Weapon . | . . . . . . . . . . . . . . . . Impact Weapon 3 | . . . . . . 1 2 . . . . . . . . Slashing Weapon 4 | . . . . . 2 . . . . . . 1 1 . . Piercing Weapon 3 | . . . . . . . . . . . 1 2 . . . Special Melee Weapon . | . . . . . . . . . . . . . . . . Unidentified Prototypes 15 | . . . 1 . . . 2 . 3 . 3 . . 6 . Parts Lost 75 | . . . . . 6 11 5 . . . 10 9 19 . 15 Power 14 | . . . . . 2 2 1 . . . 1 1 5 . 2 Propulsion 25 | . . . . . 3 5 3 . . . 2 2 4 . 6 Utility 24 | . . . . . . 1 . . . . 7 6 6 . 4 Weapon 12 | . . . . . 1 3 1 . . . . . 4 . 3 Highest Loss Streak 11 | . . . . . 6 9 3 . . . 6 4 11 . 6 Average Slot Usage (%) 69 | . 9 14 24 28 64 71 60 47 49 60 70 69 94 94 78 Engine 3 | . . . 10 14 13 11 . . . . . 4 . . . Core 4 | . . . . . 2 . 1 5 5 5 8 4 8 6 2 Treads 9 | . . . . . 12 . 12 . . 10 11 11 10 6 . Leg 6 | . . . . . 9 27 . . . . . . 12 19 27 Hover 4 | . . . . . 1 . 13 11 11 . 4 7 5 3 . Device 9 | . 9 14 3 . . . . . . . 8 7 27 24 12 Storage 6 | . . . 10 14 9 7 6 5 5 5 4 7 6 6 10 Processor 9 | . . . . . 8 9 13 17 17 17 11 10 9 10 10 Protection 3 | . . . . . . 7 4 . . 4 5 5 . 1 4 Energy Gun 1 | . . . . . 1 . . . . . . . 4 5 2 Energy Cannon 1 | . . . . . . . . . . . . 1 4 5 1 Impact Weapon 1 | . . . . . . . 4 5 5 5 1 . . . . Slashing Weapon 1 | . . . . . 6 4 . . . . . 2 . . . Naked Turns 39 | . 39 . . . . . . . . . . . . . . Heaviest Build 96 | . 1 1 8 8 22 23 30 18 18 53 67 96 79 79 77 Greatest Support 210 | 3 3 3 3 3 60 60 70 27 27 140 210 154 154 150 150 Greatest Overweight (x) 14 | . . . 2 2 2 . 5 . . . 2 2 14 2 1 Average Overweight (x) . | . . . 1 2 . . . . . . . . 2 . . Largest Inventory Capacity 24 | 4 4 4 24 24 24 24 24 24 24 24 24 12 12 12 12 Average Capacity 17 | 4 4 4 19 24 24 24 24 24 24 24 18 9 12 12 12 Most Carried 24 | 1 4 4 4 5 10 9 22 22 24 24 24 8 12 12 12 Average Carried 11 | . 3 4 3 4 5 7 14 21 22 23 18 4 11 11 10 Final Capacity 24 | 4 4 4 24 24 24 24 24 24 24 24 4 12 12 12 12 Final Carried 24 | 1 4 4 4 5 9 6 21 22 24 22 4 8 12 12 5 Class Distribution -------------------- 41% | Scavenger-Mutant 37% | Hauler-Mutant 8% | Hauler-Skirmisher 4% | Mutant Dominant Class ---------------- Mutant | -10/Materials Mutant | -10/Mines Hauler-Mutant | -10/Exiles Hauler-Mutant | -9/Mines Hauler-Mutant | -8/Materials Hauler-Mutant | -7/Factory Hauler-Mutant | -6/Factory Hauler-Mutant | -5/Factory Hauler-Mutant | -5/Waste Hauler-Mutant | -5/Factory Hauler-Skirmisher | -4/Factory Scavenger-Mutant | -4/Upper Caves Scavenger-Mutant | -4/Upper Caves Scavenger-Mutant | -4/Zhirov Scavenger-Mutant | -3/Proximity Caves Resources | -11 -10 -10 -10 -9 -8 -7 -6 -5 -5 -5 -4 -4 -4 -4 -3 ----------- Run | Scr Mat Min Exi Min Mat Fac Fac Fac Was Fac Fac Upp Upp Zhi Pro Matter Collected 2438 | 189 . . . . 212 110 190 . . . 835 365 319 . 218 Remotely . | . . . . . . . . . . . . . . . . Salvage Created 3795 | . . . . . 474 368 338 . . 2 1000 963 563 . 87 Parts 144 | . . . . . 25 14 3 . . 2 39 28 27 . 6 Haulers Intercepted 1 | . . . . . . . . . . . 1 . . . . Recyclers Shooed 4 | . . . . . 2 . . . . . 2 . . . . Parts Field Recycled . | . . . . . . . . . . . . . . . . Retrieved Matter . | . . . . . . . . . . . . . . . . Parts Self-Destructed 18 | . . . . . . . . . . . . 8 6 . 4 Prevented 2 | . . . . . . . . . . . . 1 . . 1 Kills | -11 -10 -10 -10 -9 -8 -7 -6 -5 -5 -5 -4 -4 -4 -4 -3 ------- Run | Scr Mat Min Exi Min Mat Fac Fac Fac Was Fac Fac Upp Upp Zhi Pro Combat Hostiles Destroyed 50 | . . . . . 9 6 . . . 3 8 12 8 . 4 Melee 16 | . . . . . 6 2 . . . . . 2 6 . . Guns 3 | . . . . . 1 . . . . . . . . . 2 Cannons 9 | . . . . . . . . . . . 7 . 2 . . AOE 20 | . . . . . 2 4 . . . 3 . 9 . . 2 Classes Destroyed 14 | . . . . . 4 2 . . . 1 4 2 1 . . Worker 3 | . . . . . . . . . . . 3 . . . . Builder 4 | . . . . . . 2 1 . . . 1 . . . . Hauler 1 | . . . . . . . . . . . 1 . . . . Recycler 8 | . . . . . . 2 2 . . . 4 . . . . Watcher 2 | . . . . . 1 . 1 . . . . . . . . Swarmer 9 | . . . . . . . . . . 3 . 2 . . 4 Grunt 18 | . . . . . 4 5 . . . . 2 7 . . . Brawler 1 | . . . . . . . . . . . . 1 . . . Duelist 3 | . . . . . 2 . . . . . . 1 . . . Sentry 6 | . . . . . 3 1 . . . . 1 1 . . . Hunter 2 | . . . . . . . . . . . 2 . . . . Programmer 5 | . . . . . . . . . . . 3 . 2 . . Samaritan 5 | . . . . . . . . . . . . 5 . . . Thug 4 | . . . . . . . . . . . . . 4 . . Butcher 1 | . . . . . . . . . . . . . 1 . . Mutant 1 | . . . . . . . . . . . . . 1 . . Best Kill Streak 9 | . . . . . 4 9 2 . . 3 6 8 4 . 3 Combat Bots Only 8 | . . . . . 4 5 . . . 3 4 8 4 . 3 Max Kills in Single Turn 3 | . . . . . 2 2 1 . . 1 3 3 1 . 1 Gunslinging . | . . . . . . . . . . . . . . . . Exploded 3 | . . . . . 2 2 . . . 1 . 3 . . 1 Melee 1 | . . . . . 1 1 . . . . . 1 1 . . Uniques/NPCs Destroyed . | . . . . . . . . . . . . . . . . Combat | -11 -10 -10 -10 -9 -8 -7 -6 -5 -5 -5 -4 -4 -4 -4 -3 -------- Run | Scr Mat Min Exi Min Mat Fac Fac Fac Was Fac Fac Upp Upp Zhi Pro Damage Taken 13835 | . . 45 . . 1021 1478 1755 . . 67 3165 1596 2455 . 2253 Core 1803 | . . 34 . . 257 250 137 . . . 165 115 483 . 362 Absorbed by Shields . | . . . . . . . . . . . . . . . . Core Remaining (%) 81 | 100 . . . 86 53 64 83 . . 100 . . . . . Volleys Fired 90 | . . . . . 5 11 . . . 6 29 14 7 . 18 Largest 2 | . . . . . 2 1 . . . 1 2 1 2 . 2 Hottest 138 | . . . . . 98 33 . . . 36 122 110 138 . 110 Shots Fired 130 | . . . . . 6 11 . . . 6 58 13 12 . 24 Gun 30 | . . . . . 5 . . . . . . . 7 . 18 Cannon 73 | . . . . . . . . . . . 58 7 5 . 3 Launcher 27 | . . . . . 1 11 . . . 6 . 6 . . 3 Special . | . . . . . . . . . . . . . . . . Kinetic 64 | . . . . . . . . . . . 58 . . . 6 Thermal 24 | . . . . . 5 . . . . . . . 7 . 12 Explosive 27 | . . . . . 1 11 . . . 6 . 6 . . 3 Electromagnetic 15 | . . . . . . . . . . . . 7 5 . 3 Robot Hit Streak 16 | . . . . . 3 5 . . . 4 9 6 15 . 16 Robot Miss Streak 3 | . . . . . 1 2 . . . . 3 1 . . 3 Penetration Max 1 | . . . . . . . . . . . 1 . . . . Secondary Targets . | . . . . . . . . . . . . . . . . Shots Hit Robots 183 | . . . . . 31 19 5 . . 1 55 25 33 . 14 Core Hits 126 | . . . . . 14 25 1 . . 7 23 31 19 . 6 Critical Hits 9 | . . . . . . . . . . . 9 . . . . Critical Kills 6 | . . . . . . . . . . . 6 . . . . Critical Parts Destroyed 3 | . . . . . . . . . . . 3 . . . . Melee Attacks 138 | . . . . . 30 22 10 . . . 33 18 25 . . Impact 33 | . . . . . . 6 10 . . . 17 . . . . Slashing 61 | . . . . . 30 16 . . . . . 3 12 . . Piercing 44 | . . . . . . . . . . . 16 15 13 . . Sneak Attacks 17 | . . . . . 4 . 3 . . . 3 7 . . . Combat Hostiles . | . . . . . . . . . . . . . . . . Follow-up Attacks 5 | . . . . . . . . . . . . 2 3 . . Damage Inflicted 9853 | . . . . . 1170 1228 456 . . 652 2251 2353 1001 . 742 Guns 359 | . . . . . 60 . . . . . . . 138 . 161 Cannons 1865 | . . . . . . . . . . . 1495 159 124 . 87 Explosions 3435 | . . . . . 109 932 . . . 652 . 1248 . . 494 Melee 4170 | . . . . . 1001 296 435 . . . 753 946 739 . . Ramming 24 | . . . . . . . 21 . . . 3 . . . . Kinetic 1568 | . . . . . . . . . . . 1495 . . . 73 Thermal 286 | . . . . . 60 . . . . . . . 138 . 88 Explosive 3435 | . . . . . 109 932 . . . 652 . 1248 . . 494 Electromagnetic 370 | . . . . . . . . . . . . 159 124 . 87 Impact 896 | . . . . . . 119 435 . . . 342 . . . . Slashing 1708 | . . . . . 1001 177 . . . . . 141 389 . . Piercing 1566 | . . . . . . . . . . . 411 805 350 . . Highest Corruption 11 | . . . . . . . . . . 11 6 6 9 5 3 Average Corruption 6 | . . . . . . . . . . 10 2 6 8 4 2 Corruption Purged 7 | . . . . . . . . . . . . . 4 2 1 Effects 92 | . . . . . . . . . . 8 4 20 51 7 2 Message Errors 23 | . . . . . . . . . . 3 . 3 14 3 . Matter Fused 23 | . . . . . . . . . . 2 1 4 13 2 1 Heat Flow Errors 11 | . . . . . . . . . . 1 1 4 5 . . Energy Discharges 16 | . . . . . . . . . . 1 2 4 7 1 1 Data Loss (minor) 7 | . . . . . . . . . . . . 3 4 . . Data Loss (major) 4 | . . . . . . . . . . . . . 3 1 . Misfires 1 | . . . . . . . . . . . . . 1 . . Misdirections 1 | . . . . . . . . . . 1 . . . . . Targeting Errors 5 | . . . . . . . . . . . . 1 4 . . Weapon Failures 1 | . . . . . . . . . . . . 1 . . . Overload Shots . | . . . . . . . . . . . . . . . . Overflow Damage 798 | . . . . . 199 7 233 . . 61 121 162 8 . 7 Projectiles 57 | . . . . . . . . . . . 57 . . . . Explosions 98 | . . . . . . 7 . . . 61 . 23 . . 7 Melee 643 | . . . . . 199 . 233 . . . 64 139 8 . . Knockbacks 11 | . . . . . . . 4 . . . 7 . . . . Impact 4 | . . . . . . . 4 . . . . . . . . Kinetic 7 | . . . . . . . . . . . 7 . . . . Secondary . | . . . . . . . . . . . . . . . . Self-Inflicted Damage 422 | . . . . . . 366 4 . . . . 30 . . 22 Shots 12 | . . . . . . 9 . . . . . 1 . . 2 Rammed 3 | . . . . . . . 2 . . . 1 . . . . Targets Rammed 3 | . . . . . . . 2 . . . 1 . . . . Kicked . | . . . . . . . . . . . . . . . . Crushed . | . . . . . . . . . . . . . . . . Highest Temperature 286 | . . . . . 144 61 . . . 119 286 217 177 . . Average Temperature 89 | . . . . . 65 33 . . . 59 140 83 56 . . Received Heat Transfer 2442 | . . 24 . . 342 372 270 . . . 363 339 525 . 207 Siege Activations . | . . . . . . . . . . . . . . . . Robots Corrupted 1 | . . . . . . . . . . . . 1 . . . Combat Hostiles 1 | . . . . . . . . . . . . 1 . . . Parts Fried 10 | . . . . . . . 10 . . . . . . . . Impact Corruptions 10 | . . . . . . . 9 . . . 1 . . . . Robots Melted . | . . . . . . . . . . . . . . . . Combat Hostiles . | . . . . . . . . . . . . . . . . Parts Melted 1 | . . . . . . . . . . . . . . . 1 Heat Transferred 592 | . . . . . 148 . . . . . . . 259 . 185 Parts Sabotaged 3 | . . . . . . . . . . . . . . . 3 Parts Stolen . | . . . . . . . . . . . . . . . . Parts Stripped . | . . . . . . . . . . . . . . . . Power Chain Reactions . | . . . . . . . . . . . . . . . . Missiles Intercepted . | . . . . . . . . . . . . . . . . Alert | -11 -10 -10 -10 -9 -8 -7 -6 -5 -5 -5 -4 -4 -4 -4 -3 ------- Run | Scr Mat Min Exi Min Mat Fac Fac Fac Was Fac Fac Upp Upp Zhi Pro Peak Influence 520 | . 105 55 . . 198 287 520 83 74 214 281 . . . . Initial 108 | . . 40 . . . 49 108 68 29 51 6 . . . . Average 99 | . 25 50 . . 75 127 186 76 55 98 69 . . . . Maximum Alert Level 2 | . . . . . . 1 2 . . 1 1 . . . . Low Security (%) 88 | 100 100 100 . 100 100 64 71 100 100 99 93 . . . . Level 1 6 | . . . . . . 35 4 . . . 6 . . . . Level 2 5 | . . . . . . . 23 . . . . . . . . Level 3 . | . . . . . . . . . . . . . . . . Level 4 . | . . . . . . . . . . . . . . . . Level 5 . | . . . . . . . . . . . . . . . . High Security . | . . . . . . . . . . . . . . . . Max Security . | . . . . . . . . . . . . . . . . Squads Dispatched 14 | . . . . . 1 2 4 . . . 6 . . . 1 Investigation 2 | . . . . . . . 1 . . . 1 . . . . Extermination 3 | . . . . . . . 1 . . . 2 . . . . Reinforcement 8 | . . . . . 1 2 2 . . . 3 . . . . Assault 1 | . . . . . . . . . . . . . . . 1 Garrison . | . . . . . . . . . . . . . . . . Intercept . | . . . . . . . . . . . . . . . . Construction Impeded 3 | . . . . . . 1 . . . . 2 . . . . Haulers Reinforced . | . . . . . . . . . . . . . . . . Stealth | -11 -10 -10 -10 -9 -8 -7 -6 -5 -5 -5 -4 -4 -4 -4 -3 --------- Run | Scr Mat Min Exi Min Mat Fac Fac Fac Was Fac Fac Upp Upp Zhi Pro Distress Signals 7 | . 1 . . . 1 . 4 . . . 1 . . . . Communications Jammed . | . . . . . . . . . . . . . . . . Distress Signals . | . . . . . . . . . . . . . . . . Times Spotted 154 | . 9 4 . . 17 12 23 1 6 4 33 15 11 . 19 Peak Tracking Total 10 | . 5 4 . . 7 7 8 1 6 3 10 7 5 . 10 Tactical Retreats 21 | . 2 . . . . 1 5 . . 1 5 4 . . 3 Traps | -11 -10 -10 -10 -9 -8 -7 -6 -5 -5 -5 -4 -4 -4 -4 -3 ------- Run | Scr Mat Min Exi Min Mat Fac Fac Fac Was Fac Fac Upp Upp Zhi Pro Traps Triggered 12 | . . . . . . . 4 1 . 3 4 . . . . Indirectly . | . . . . . . . . . . . . . . . . Trap Hack Attempts . | . . . . . . . . . . . . . . . . Triggered . | . . . . . . . . . . . . . . . . Disarmed . | . . . . . . . . . . . . . . . . Reprogrammed . | . . . . . . . . . . . . . . . . Reused . | . . . . . . . . . . . . . . . . Traps Extracted . | . . . . . . . . . . . . . . . . Installed 1 | . . . . . . . . . . . . 1 . . . Triggered 2 | . . . . . . . . . . . . . . . 2 Machines | -11 -10 -10 -10 -9 -8 -7 -6 -5 -5 -5 -4 -4 -4 -4 -3 ---------- Run | Scr Mat Min Exi Min Mat Fac Fac Fac Was Fac Fac Upp Upp Zhi Pro Machines Disabled 2 | . . . . . . . . . . . 2 . . . . Max in Single Turn 1 | . . . . . . . . . . . 1 . . . . Garrison Access 2 | . . . . . . 1 1 . . . . . . . . Machines Sabotaged . | . . . . . . . . . . . . . . . . Garrisons Compromised . | . . . . . . . . . . . . . . . . Overloaded Fab Kills . | . . . . . . . . . . . . . . . . Fab Network Shutdowns 1 | . . . . . . . 1 . . . . . . . . Hacking | -11 -10 -10 -10 -9 -8 -7 -6 -5 -5 -5 -4 -4 -4 -4 -3 --------- Run | Scr Mat Min Exi Min Mat Fac Fac Fac Was Fac Fac Upp Upp Zhi Pro Machines Accessed 29 | . . . . . 3 2 7 . . 3 5 . . 9 . Terminals 12 | . . . . . 3 . 3 . . 2 4 . . . . Fabricators 3 | . . . . . . 1 1 . . . 1 . . . . Repair Stations 2 | . . . . . . . 1 . . 1 . . . . . Recycling Units . | . . . . . . . . . . . . . . . . Scanalyzers . | . . . . . . . . . . . . . . . . Garrison Access 3 | . . . . . . 1 2 . . . . . . . . Total Hacks 88 | . . . . . 11 3 12 . . 6 8 . . 48 . Successful 69 | . . . . . 2 2 8 . . 5 4 . . 48 . Failed 19 | . . . . . 9 1 4 . . 1 4 . . . . Catastrophic 5 | . . . . . 3 . 1 . . . 1 . . . . Database Lockouts . | . . . . . . . . . . . . . . . . Manual 19 | . . . 1 . 9 . 5 . . 1 3 . . . . Terminals 27 | . . . . . 11 . 5 . . 4 7 . . . . Fabricators 4 | . . . . . . 1 2 . . . 1 . . . . Repair Stations 4 | . . . . . . . 2 . . 2 . . . . . Recycling Units . | . . . . . . . . . . . . . . . . Scanalyzers . | . . . . . . . . . . . . . . . . Garrison Access 5 | . . . . . . 2 3 . . . . . . . . Terminal Hacks 60 | . . . . . 2 . 4 . . 3 3 . . 48 . Record 40 | . . . . . . . . . . 1 3 . . 36 . Part Schematic 4 | . . . . . . . . . . . . . . 4 . Robot Analysis 5 | . . . . . . . . . . 1 . . . 4 . Prototype ID Bank 5 | . . . . . . . . . . 1 . . . 4 . Level Access Points 1 | . . . . . 1 . . . . . . . . . . Alert Level 2 | . . . . . . . 2 . . . . . . . . Unreport Threat 2 | . . . . . . . 2 . . . . . . . . Security Status 1 | . . . . . 1 . . . . . . . . . . Fabricator Hacks 3 | . . . . . . 1 1 . . . 1 . . . . Network Status 1 | . . . . . . . . . . . 1 . . . . Build 2 | . . . . . . 1 1 . . . . . . . . Repair Station Hacks 4 | . . . . . . . 2 . . 2 . . . . . Scan Component 2 | . . . . . . . 1 . . 1 . . . . . Repair 2 | . . . . . . . 1 . . 1 . . . . . Recycling Unit Hacks . | . . . . . . . . . . . . . . . . Scanalyzer . | . . . . . . . . . . . . . . . . Garrison Access Hacks 2 | . . . . . . 1 1 . . . . . . . . Seal Access 2 | . . . . . . 1 1 . . . . . . . . Unauthorized Hacks . | . . . . . . . . . . . . . . . . Terminals . | . . . . . . . . . . . . . . . . Fabricators . | . . . . . . . . . . . . . . . . Repair Stations . | . . . . . . . . . . . . . . . . Recycling Units . | . . . . . . . . . . . . . . . . Scanalyzers . | . . . . . . . . . . . . . . . . Garrison Access . | . . . . . . . . . . . . . . . . Data Cores Recovered . | . . . . . . . . . . . . . . . . Used . | . . . . . . . . . . . . . . . . Hacking Detections 17 | . . . . . 3 2 6 . . 1 5 . . . . Full Trace Events 2 | . . . . . 1 . . . . . 1 . . . . Feedback Events . | . . . . . . . . . . . . . . . . Feedback Blocked . | . . . . . . . . . . . . . . . . Robot Schematics Acquired . | . . . . . . . . . . . . . . . . Robots Built 3 | . . . . . . 3 . . . . . . . . . Matter 252 | . . . . . . 252 . . . . . . . . . Time 134 | . . . . . . 134 . . . . . . . . . Total Robot Build Rating 12 | . . . . . . 12 . . . . . . . . . Part Schematics Acquired 4 | . . . . . . . . . . . . . . 4 . Parts Built 2 | . . . . . . . 2 . . . . . . . . Matter 256 | . . . . . . . 256 . . . . . . . . Time 128 | . . . . . . . 128 . . . . . . . . Total Part Build Rating 16 | . . . . . . . 16 . . . . . . . . Parts Repaired 2 | . . . . . . . 1 . . 1 . . . . . Time 93 | . . . . . . . 68 . . 25 . . . . . Parts Recycled . | . . . . . . . . . . . . . . . . Recycled Matter . | . . . . . . . . . . . . . . . . Retrieved Matter . | . . . . . . . . . . . . . . . . Retrieved Components . | . . . . . . . . . . . . . . . . Parts Scanalyzed . | . . . . . . . . . . . . . . . . Part Schematics Acquired . | . . . . . . . . . . . . . . . . Parts Damaged . | . . . . . . . . . . . . . . . . Bothacking | -11 -10 -10 -10 -9 -8 -7 -6 -5 -5 -5 -4 -4 -4 -4 -3 ------------ Run | Scr Mat Min Exi Min Mat Fac Fac Fac Was Fac Fac Upp Upp Zhi Pro Used RIF Installer . | . . . . . . . . . . . . . . . . Robots Hacked . | . . . . . . . . . . . . . . . . Non-combat . | . . . . . . . . . . . . . . . . Combat . | . . . . . . . . . . . . . . . . Robot Hacks Applied . | . . . . . . . . . . . . . . . . Relay Couplers Released . | . . . . . . . . . . . . . . . . Robots Rewired 1 | . . . . . . . . . . . . 1 . . . Allies Hacked . | . . . . . . . . . . . . . . . . Hacks Repelled . | . . . . . . . . . . . . . . . . Allies | -11 -10 -10 -10 -9 -8 -7 -6 -5 -5 -5 -4 -4 -4 -4 -3 -------- Run | Scr Mat Min Exi Min Mat Fac Fac Fac Was Fac Fac Upp Upp Zhi Pro Total Allies 7 | . . . . 3 . 3 . . . . . 1 . . . Largest Group 3 | . . . . 3 3 3 . . . . . 1 . . . Highest-Rated Group 60 | . . . . 40 40 60 . . . . . 30 . . . Highest-Rated Ally 30 | . . . . 16 16 20 . . . . . 30 . . . Total Orders 1 | . . . . . 1 . . . . . . . . . . ROAM 1 | . . . . . 1 . . . . . . . . . . Ally Attacks 19 | . . . . . 11 6 . . . . . 2 . . . Total Damage 216 | . . . . . 109 75 . . . . . 32 . . . Kills 3 | . . . . . 2 1 . . . . . . . . . Allies Corrupted . | . . . . . . . . . . . . . . . . Allies Melted . | . . . . . . . . . . . . . . . . Intel | -11 -10 -10 -10 -9 -8 -7 -6 -5 -5 -5 -4 -4 -4 -4 -3 ------- Run | Scr Mat Min Exi Min Mat Fac Fac Fac Was Fac Fac Upp Upp Zhi Pro Robot Analysis Total 5 | . . . . . . . . . . 1 . . . 4 . Derelict Logs Recovered 3 | . . . . . . . . . . . . 2 1 . . Drone Launches . | . . . . . . . . . . . . . . . . Drone Recoveries . | . . . . . . . . . . . . . . . . Exploration | -11 -10 -10 -10 -9 -8 -7 -6 -5 -5 -5 -4 -4 -4 -4 -3 ------------- Run | Scr Mat Min Exi Min Mat Fac Fac Fac Was Fac Fac Upp Upp Zhi Pro Turns Passed 7909 | 14 118 17 276 286 709 396 1046 24 64 413 1337 937 1592 378 302 Spaces Moved 5199 | 25 213 34 263 180 353 262 854 46 113 246 945 522 713 228 202 Core 773 | 25 213 34 263 180 55 . 1 . . . . . 2 . . Treads 2063 | . . . . . 140 . 426 . . 215 522 494 131 135 . Legs 1247 | . . . . . 138 235 . . . . . . 579 93 202 Wheels 33 | . . . . . . 27 6 . . . . . . . . Hover 1083 | . . . . . 20 . 421 46 113 31 423 28 1 . . Flight . | . . . . . . . . . . . . . . . . Fastest Speed 40 | 50 50 50 50 150 120 100 40 51 51 51 45 48 150 120 120 Average Speed 130 | 50 50 50 103 150 141 117 109 51 51 146 109 156 201 158 120 Slowest Speed 750 | 50 50 50 150 150 160 120 300 51 51 160 190 200 750 210 150 Overloaded Moves . | . . . . . . . . . . . . . . . . Propulsion Burnouts . | . . . . . . . . . . . . . . . . Robots Hopped . | . . . . . . . . . . . . . . . . Cave-ins Triggered . | . . . . . . . . . . . . . . . . Teleports 1 | . . . . . . . . . . . . . . 1 . Exploration Rate (%) 38 | 3 35 8 65 44 31 12 35 2 80 7 33 80 76 62 36 Regions Visited 15 Branch Regions 7 Pre-discovered Areas 4 | . . . . . . . . . . . . 1 . 3 . Known Exits Taken 1 | . . . . . 1 . . . . . . . . . . Unknown Exits Taken 12 | 1 1 1 1 1 . 1 1 . . 1 1 1 1 1 . Scrap Searched 7 | . . . . . . . . . . . . 3 3 . 1 Spaces Dug 21 | . . . . . 1 9 4 . . . 7 . . . . Terrain Destroyed 264 | . . . . . 13 48 4 . . 31 23 76 . . 69 Melee 21 | . . . . . 1 9 4 . . . 7 . . . . Projectile 16 | . . . . . . . . . . . 16 . . . . AOE 227 | . . . . . 12 39 . . . 31 . 76 . . 69 Terrain Rammed . | . . . . . . . . . . . . . . . . Walls Destroyed . | . . . . . . . . . . . . . . . . Machines Disabled . | . . . . . . . . . . . . . . . . Actions | -11 -10 -10 -10 -9 -8 -7 -6 -5 -5 -5 -4 -4 -4 -4 -3 --------- Run | Scr Mat Min Exi Min Mat Fac Fac Fac Was Fac Fac Upp Upp Zhi Pro Total 5999 | 25 223 33 267 196 506 305 948 47 118 296 1137 598 821 243 236 Wait 293 | . 7 . 1 16 84 . 43 . 1 26 64 8 42 . 1 Move 5185 | 24 212 33 262 179 352 261 853 46 112 245 944 521 712 227 202 Hop . | . . . . . . . . . . . . . . . . Pick Up 53 | 1 3 . 1 1 5 1 11 1 . 5 15 4 5 . . Fast Attach 111 | . 1 . 1 . 15 4 15 . 3 3 22 17 17 8 5 Attach 40 | . . . 1 . 4 5 6 . . 3 3 6 5 1 6 Detach 29 | . . . . . 5 1 8 . 2 . 5 5 1 1 1 Swap 7 | . . . . . 2 . . . . . 1 1 3 . . Drop 45 | . . . 1 . 4 . . . . 8 20 2 3 4 3 Fire 90 | . . . . . 5 11 . . . 6 29 14 7 . 18 Melee 132 | . . . . . 30 22 10 . . . 33 15 22 . . Ram 1 | . . . . . . . 1 . . . . . . . . Kick . | . . . . . . . . . . . . . . . . Crush 2 | . . . . . . . 1 . . . 1 . . . . Escape Stasis . | . . . . . . . . . . . . . . . . Rewire 10 | . . . . . . . . . . . . 4 4 2 . Trap 1 | . . . . . . . . . . . . 1 . . . Miscellaneous . | . . . . . . . . . . . . . . . . Route ------- -11/Scrapyard -10/Materials -10/Mines -10/Exiles -9/Mines -8/Materials (discovered 3 exits: *Fac x3) -7/Factory (discovered 2 exits: *Fac / [*Sto]) -6/Factory -5/Factory -5/Waste -5/Factory -4/Factory -4/Upper Caves -4/Upper Caves -4/Zhirov -3/Proximity Caves History --------- Turn | Location | Event 6 | -11/Scrapyard | Discovered new exit (range 15) 15 | -11/Scrapyard | Entered Materials 129 | -10/Materials | Discovered new exit (range 9) 133 | -10/Materials | Entered Mines 148 | -10/Mines | Deemed a non-threat by the Exiles lab entrance 148 | -10/Mines | Discovered new exit (range 5) 150 | -10/Mines | Entered Exiles 163 | -10/Exiles | Met 8R-AWN 171 | -10/Exiles | Met EX-HEX 187 | -10/Exiles | Met EX-BIN 194 | -10/Exiles | Aligned with FarCom system 195 | -10/Exiles | Given EX-Vault access code 209 | -10/Exiles | Opened EX-Vault 212 | -10/Exiles | Found Prototype Storage 212 | -10/Exiles | Identified Lightpack 2.0 248 | -10/Exiles | Warned to stay clear of 0b10 Research branches 290 | -10/Exiles | Met EX-DEC 365 | -10/Exiles | Discovered new exit (range 12) 426 | -10/Exiles | Left Exiles lab with Lightpack 2.0 426 | -10/Exiles | Entered Mines 447 | -9/Mines | Met a Derelict bent on vengeance 459 | -9/Mines | Assisted by bots powering up and referring to "LRC-V3" 519 | -9/Mines | Build established: Hauler-Mutant 595 | -9/Mines | Received a Rocket Launcher from a helpful Derelict 676 | -9/Mines | Discovered new exit (range 15) 712 | -9/Mines | Entered Materials 712 | -8/Materials | Accompanied by 3 allies 712 | -8/Materials | Evolved 4 slots: Power x1, Propulsion x2, Utility x1 1173 | -8/Materials | Lost 6 parts (2p3n1w) 1310 | -8/Materials | Identified exit to Factory 1421 | -8/Materials | Entered Factory 1421 | -7/Factory | Evolved 2 slots: Utility x2 1768 | -7/Factory | Fabricated B-48 Gladiator? 1775 | -7/Factory | Lost 9 parts (2p3n1u3w) 1809 | -7/Factory | Discovered new exit (range 10) 1817 | -7/Factory | Discovered new exit (range 20) 1817 | -7/Factory | Entered another Factory area 1817 | -6/Factory | Evolved 2 slots: Propulsion x1, Utility x1 1921 | -6/Factory | Local fabrication network quarantined 1982 | -6/Factory | Fabricated Biometal Medium Treads? 2467 | -6/Factory | Spotted B-75 Beast 2806 | -6/Factory | Repaired Biometal Medium Treads? 2851 | -6/Factory | Lost 3 parts (1p2n) 2860 | -6/Factory | Discovered new exit (range 6) 2863 | -6/Factory | Entered another Factory area 2863 | -5/Factory | Evolved 2 slots: Utility x2 2887 | -5/Factory | Sucked down chute 2887 | -5/Factory | Entered Waste 2892 | -5/Waste | Spotted C-40 Crusher 2901 | -5/Waste | Spotted C-40 Crusher 2906 | -5/Waste | Found Prototype Device 2906 | -5/Waste | Identified Adv. Particle Accelerator 2908 | -5/Waste | Spotted C-40 Crusher 2915 | -5/Waste | Spotted C-40 Crusher 2916 | -5/Waste | Spotted C-40 Crusher 2921 | -5/Waste | Found Prototype Hackware 2921 | -5/Waste | Identified Exp. System Shield 2923 | -5/Waste | Spotted C-40 Crusher 2946 | -5/Waste | Discovered new exit (range 12) 2951 | -5/Waste | Entered Factory 3102 | -5/Factory | System corruption reached 10% 3193 | -5/Factory | Repaired Imp. Heavy Armor Plating 3279 | -5/Factory | Discovered new exit (range 6) 3364 | -5/Factory | Entered another Factory area 3364 | -4/Factory | Evolved 2 slots: Propulsion x1, Utility x1 3388 | -4/Factory | Found Prototype Processor 3388 | -4/Factory | Identified Exp. Signal Interpreter 3427 | -4/Factory | Spotted B-86 Titan 4005 | -4/Factory | Build established: Hauler-Skirmisher 4416 | -4/Factory | Lost 3 parts (1p2u) 4549 | -4/Factory | Spotted B-86 Titan 4654 | -4/Factory | Discovered new exit (range 10) 4701 | -4/Factory | Entered Upper Caves 4731 | -4/Upper Caves | Lost 6 parts (2n4u) 4762 | -4/Upper Caves | Attracted the attention of an 0b10 outpost 4807 | -4/Upper Caves | Lost 4 parts (1n3u) 4817 | -4/Upper Caves | Destroyed 8 combat bots 5043 | -4/Upper Caves | Learned location of Quarantine (-3) 5073 | -4/Upper Caves | Build established: Scavenger-Mutant 5153 | -4/Upper Caves | Lost 4 parts (1p1n2u) 5407 | -4/Upper Caves | Learned Research security intel 5410 | -4/Upper Caves | Spotted B-86 Titan 5481 | -4/Upper Caves | Discovered new exit (range 18) 5638 | -4/Upper Caves | Entered another Upper Caves area 5695 | -4/Upper Caves | Lost 3 parts (2p1n) 5750 | -4/Upper Caves | Attacked by a faux Warlord 5867 | -4/Upper Caves | Core integrity fell below 50% 5885 | -4/Upper Caves | Lost 11 parts (1p3n5u2w) 6376 | -4/Upper Caves | Discovered new exit (range 14) 7146 | -4/Upper Caves | Learned Research stockpile data 7148 | -4/Upper Caves | Attracted the attention of an 0b10 checkpoint 7230 | -4/Upper Caves | Entered Zhirov 7230 | -4/Zhirov | Discovered new exit (range 3) 7288 | -4/Zhirov | Met Zhirov 7350 | -4/Zhirov | Found Alien Artifact 7350 | -4/Zhirov | Identified Integrated Dissipator 7350 | -4/Zhirov | Installed Integrated Dissipator, increased core heat dissipation (+20) 7379 | -4/Zhirov | Found Alien Artifact 7379 | -4/Zhirov | Identified Transdimensional Reconstructor 7379 | -4/Zhirov | Warped through subspace 7558 | -4/Zhirov | Learned location of Testing (-2) 7558 | -4/Zhirov | Learned location of Command (-1) 7569 | -4/Zhirov | Zhirov requested help retrieving the SGEMP Prototype 7608 | -4/Zhirov | Entered Proximity Caves 7735 | -3/Proximity Caves | Attracted the attention of an 0b10 outpost 7806 | -3/Proximity Caves | Lost 3 parts (1p2w) 7877 | -3/Proximity Caves | Lost 4 parts (1p2n1w) 7899 | -3/Proximity Caves | Core integrity fell below 20% 7910 | -3/Proximity Caves | Destroyed by G-67 Veteran with Electrolaser Last Messages --------------- 07896_ Penetrated by Slug. 07896_ Adv. Myomer Leg destroyed. 07896_ Slug penetrates Wall. 07900_ Penetrated by Slug. 07900_ Slug penetrates L-61 Swordsman. 07901_ Penetrated by Slug. 07901_ Slug penetrates L-61 Swordsman. 07901_ G-73 Enforcer suffers critical hit. 07901_ Penetrated by Slug. 07901_ Slug penetrates L-61 Swordsman. 07901_ L-61 Swordsman suffers critical hit. 07903_ Penetrated by Slug. 07903_ Critical hit. 07903_ Adv. Myomer Leg destroyed. 07903_ Penetrated by Slug. 07907_ Slug penetrates L-61 Swordsman. 07907_ L-61 Swordsman destroyed. 07907_ Slug penetrates Wall. 07909_ Penetrated by Slug. 07909_ Exp. Core Shielding destroyed. Map ----- +----------------------------------------------------+ | ##???????####??## ##???????????????????????????? | | ##??????? ### ##??????????????????????????? | | ? ##??????? ##?????????????????????????? | | ?# #???????? ##????????????????????????? | | ?# #????????? ##???????????????????????? | | ## #?????????# #???????????????????????? | | ##????????# #???????????????????????? | | ########?# #????????????????????????? | | ### #?????????????????????????? | | #?????????????????????????? | | ##?????????????????????????? | | # ## ## #??????????????????????????? | | ## ######## ###????????????????????????? | | ## #?# "#" "####?????????????????????? | | ##" #?????????????????????? | | ### ####" ! #?????????????????????? | | ## #?####?#" % ###g #?????????????????????? | | ### #?????# """#?# g#?????????????????????? | | #?# #?????##" # #?# #?????????????????????? | | ?# #??????#" ####?# #?????????????????????? | | ### #??????## ?????# #?????????????????????? | | ###?# #???????# ?????# #?????????????????????? | | ????# #???????# ?????# #?????????????????????? | | ????# #???????#??????# #?????????????????????? | | ????# ?????????????## #?????????????????????? | | ????## ?????????????# @%##????????????????????? | | ?????# ????????????## / #????????????????????? | | ?????## ##???????????# #????????????????????? | | ??????? ##???????????# #????????????????????? | | ??????? ?????????????# h #???????????????????? | | ?????????????????????# #???????????????????? | | ???????????????????? #???????????????????? | | ??????????????????? #???????????????????? | | ?????????????????# #???????????????????? | | ?????????????????# $ ???????????????????? | | ?????????????????## ## h ???????????????????? | | ??????????????????# #?# ??????????????????? | | ??????????????????#$ ?? ??????????????????? | | ??????????????????# ?? ##?????????????????? | | ??????????????????# ?? ##??????????????????? | | ??????????????????# ??? ???????????????????? | | ??????????????????## ??? ???????????????????? | | ???????????????????## ??? ####???????????????????? | | ##???????????????????????#???????????????????????? | | ##??????????????????????????????????????????????? | | ##?????????????????????????????????????????????? | | #?????????????????????????????????????????????? | | #?????????????????????????????????????????????? | | ##?????????????????????????????????????????????? | | ##??????????????????????????????????????????????? | +----------------------------------------------------+ Best States ------------- Heat Dissipation 127 Energy Generation 37 Energy Capacity 1730 Matter Stores 300 Matter Capacity 300 Sight Range 22 Robot Scan Range 10 Terrain Scan Range 20 Terrain Scan Density 10 Corruption Prevention 12 Armor Coverage 1200 Resistance: KI 25 Resistance: TH 10 Core Shielding 40 Power Shielding 66 Phase Shifting 10 Evasion (%) 64 Recoil Reduction 6 Matter Filtering 50 Salvage Targeting 3 Defensive Hacking 16 Item Schematics ----------------- Assault Drone Bay | -4/Zhirov | Free Exp. Heat Sink | -4/Zhirov | Free Exp. Optical Array | -4/Zhirov | Free Imp. Arc Thrower | -4/Zhirov | Free Robot Schematics ------------------ None Fabricated ------------ B-48 Gladiator | x3 | -7/Factory | Preloaded Biometal Medium Treads | x2 | -6/Factory | Preloaded Alien Tech Used ----------------- Integrated Dissipator Transdimensional Reconstructor Achievements -------------- Origins Subspace Traveler The Science Guy Challenges ------------ None Game ------ Seed ReclamationGreatShielding Manual? 0 Play Time 01:23:20 Cumulative 69.9 hours Start 2021.10.22 @ 22:43:01 End 2021.10.23 @ 00:24:31 Sessions 1 Manual Loads 0 Difficulty Rogue Special Mode None Game No. 86 Rogue 86 Adventurer 0 Explorer 0 Win Type - Total 0 Types 0/0/0/0/0/0/0/0/0 Lore% 37 Gallery% 54 Achievement% 37 Wizard Run 0 Options --------- ASCII 0 Keyboard 1 Movement Vi Keybinds 0 Fullscreen 1 Font 18/SmallcapsGlow Map View 76x50 Tactical HUD 1 Map Filters NONE Filters NONE Steam 1 RUN: 802e6c36-e9bb-4e66-a980-d5dd454cefb9